fUSD/lending_fUSD_20250708
["ID","MTS","AMOUNT","RATE_DAILY","PERIOD"]
[370283517,1751935854583,-520.0,0.0003041,7]
[370283518,1751935854592,-490.0,0.0003041,7]
[370283519,1751935854601,-460.0,0.0003041,7]
[370283520,1751935854609,-460.0,0.0003041,7]
[370283521,1751935854619,-460.0,0.0003041,7]
[370283522,1751935854627,-460.0,0.0003041,7]
[370283523,1751935854759,-460.0,0.0003041,7]
[370283524,1751935854769,-460.0,0.0003041,7]
[370283525,1751935854778,-460.0,0.0003041,7]
[370283526,1751935854787,-460.0,0.0003041,7]
[370283527,1751935854796,-460.0,0.0003041,7]
[370283528,1751935854805,-186.40280369,0.0003041,7]
[370283529,1751935854817,-273.59719631,0.0003041,7]
[370283530,1751935854826,-460.0,0.0003041,7]
[370283531,1751935854836,-460.0,0.0003041,7]
[370283532,1751935854845,-460.0,0.0003041,7]
[370283533,1751935854853,-519.78,0.0003041,7]
[370283534,1751935854862,-460.0,0.0003041,7]
[370283535,1751935854871,-460.0,0.0003041,7]
[370283536,1751935854880,-460.0,0.0003041,7]
[370283537,1751935854889,-460.0,0.0003041,7]
[370283538,1751935854898,-173.56,0.0003041,7]
[370283539,1751935854908,-460.0,0.0003041,7]
[370283540,1751935854917,-460.0,0.0003041,7]
[370283541,1751935854926,-460.0,0.0003041,7]
[370283542,1751935854935,-152.93,0.0003041,7]
[370283543,1751935854944,-460.0,0.0003041,7]
[370283544,1751935854954,-460.0,0.0003041,7]
[370283545,1751935854964,-460.0,0.0003041,7]
[370283546,1751935854974,-483.02091361,0.0003041,7]
[370283547,1751935854984,-490.0,0.0003041,7]
[370283548,1751935854993,-460.0,0.0003041,7]
[370283549,1751935855003,-805.73,0.0003041,7]
[370283550,1751935855012,-158.09508824,0.0003041,7]
[370283551,1751935855024,-301.90491176,0.0003041,7]
[370283552,1751935855033,-460.0,0.0003041,7]
[370283553,1751935855042,-490.0,0.0003041,7]
[370283554,1751935855052,-793.1,0.0003041,7]
[370283555,1751935855061,-426.03080128,0.0003041,7]
[370283556,1751935855074,-636.61,0.0003041,7]
[370283557,1751935855084,-460.0,0.0003041,7]
[370283558,1751935855093,-460.0,0.0003041,7]
[370283559,1751935855102,-775.1,0.0003041,7]
[370283560,1751935855111,-460.0,0.0003041,7]
[370283561,1751935855120,-519.39,0.0003041,7]
[370283562,1751935855129,-460.0,0.0003041,7]
[370283563,1751935855139,-460.0,0.0003041,7]
[370283564,1751935855148,-460.0,0.0003041,7]
[370283565,1751935855157,-460.0,0.0003041,7]
[370283566,1751935855167,-460.0,0.0003041,7]
[370283567,1751935855176,-460.0,0.0003041,7]
[370283568,1751935855185,-460.0,0.0003041,7]
[370283569,1751935855194,-460.0,0.0003041,7]
[370283570,1751935855204,-570.46922066,0.0003041,7]
[370283571,1751935855213,-460.0,0.0003041,7]
[370283572,1751935855222,-460.0,0.0003041,7]
[370283573,1751935855231,-163.88,0.0003041,7]
[370283574,1751935855241,-460.0,0.0003041,7]
[370283575,1751935855251,-460.0,0.0003041,7]
[370283576,1751935855260,-512.77,0.0003041,7]
[370283577,1751935855270,-460.0,0.0003041,7]
[370283578,1751935855286,-460.0,0.0003041,7]
[370283579,1751935855295,-460.0,0.0003041,7]
[370283580,1751935855304,-460.0,0.0003041,7]
[370283581,1751935855314,-490.0,0.0003041,7]
[370283582,1751935855323,-460.0,0.0003041,7]
[370283583,1751935855336,-704.49,0.0003041,7]
[370283584,1751935855345,-745.39,0.0003041,7]
[370283585,1751935855354,-508.02,0.0003041,7]
[370283586,1751935855363,-1006.0,0.0003041,7]
[370283587,1751935855375,-197.49,0.0003041,7]
[370283588,1751935855383,-460.0,0.0003041,7]
[370283589,1751935855393,-460.0,0.0003041,7]
[370283590,1751935855402,-460.0,0.0003041,7]
[370283591,1751935855411,-460.0,0.0003041,7]
[370283592,1751935855420,-460.0,0.0003041,7]
[370283593,1751935855429,-460.0,0.0003041,7]
[370283594,1751935855439,-606.4,0.0003041,7]
[370283595,1751935855448,-570.34,0.0003041,7]
[370283596,1751935855457,-496.47,0.0003041,7]
[370283597,1751935855467,-460.0,0.0003041,7]
[370283598,1751935855476,-460.0,0.0003041,7]
[370283599,1751935855486,-162.44604012,0.0003041,7]
[370283600,1751935855502,-297.55395988,0.0003041,7]
[370283601,1751935855512,-200.01706107,0.0003041,7]
[370283602,1751935855526,-1365.81293893,0.0003041,7]
[370283603,1751935855547,-490.0,0.0003041,7]
[370283604,1751935855565,-460.0,0.0003041,7]
[370283605,1751935855585,-1388.41,0.0003041,7]
[370283606,1751935855602,-460.0,0.0003041,7]
[370283607,1751935855620,-460.0,0.0003041,7]
[370283608,1751935855639,-460.0,0.0003041,7]
[370283609,1751935855657,-460.0,0.0003041,7]
[370283610,1751935855677,-460.0,0.0003041,7]
[370283611,1751935855694,-460.0,0.0003041,7]
[370283612,1751935855713,-460.0,0.0003041,7]
[370283613,1751935855728,-529.97,0.0003041,7]
[370283614,1751935855744,-460.0,0.0003041,7]
[370283615,1751935855760,-460.0,0.0003041,7]
[370283616,1751935855775,-572.42,0.0003041,7]
[370283617,1751935855789,-517.84,0.0003041,7]
[370283618,1751935855806,-460.0,0.0003041,7]
[370283619,1751935855822,-460.0,0.0003041,7]
[370283620,1751935855837,-200.72945322,0.0003041,7]
[370283621,1751935855852,-460.0,0.0003041,7]
[370283622,1751935855867,-2465.80690543,0.0003041,7]
[370283623,1751935855886,-3590.14309457,0.0003041,7]
[370283624,1751935855900,-460.0,0.0003041,7]
[370283625,1751935855916,-460.0,0.0003041,7]
[370283626,1751935855931,-21.53088497,0.00030452,23]
[370283627,1751935855948,-914.366961,0.00030452,23]
[370283628,1751935855962,-500.0,0.00030473,5]
[370283629,1751935855977,-500.0,0.00030473,5]
[370283630,1751935855991,-500.0,0.00030473,5]
[370283631,1751935856005,-3842.15164534,0.00030513,2]
[370283632,1751935856021,-15368.6065814,0.00030562,2]
[370283633,1751935856035,-500.0,0.00030571,7]
[370283634,1751935856050,-500.0,0.00030571,7]
[370283635,1751935856068,-47635.4099,0.00030572,2]
[370283636,1751935856083,-3842.15164534,0.00030671,2]
[370283637,1751935856098,-19210.7582267,0.00030672,2]
[370283638,1751935856114,-490.0,0.00030672,7]
[370283639,1751935856133,-11526.454936,0.00030673,2]
[370283640,1751935856149,-7684.30329068,0.00030674,2]
[370283641,1751935856163,-460.0,0.0003068,7]
[370283642,1751935856178,-460.0,0.0003068,7]
[370283643,1751935856193,-460.0,0.0003068,7]
[370283644,1751935856207,-460.0,0.0003068,7]
[370283645,1751935856221,-460.0,0.0003068,7]
[370283646,1751935856236,-460.0,0.0003068,7]
[370283647,1751935856251,-460.0,0.0003068,7]
[370283648,1751935856265,-460.0,0.0003068,7]
[370283649,1751935856280,-460.0,0.0003068,7]
[370283650,1751935856296,-460.0,0.0003068,7]
[370283651,1751935856313,-500.0,0.0003068,7]
[370283652,1751935856324,-984.71,0.0003068,7]
[370283653,1751935856333,-500.0,0.0003068,7]
[370283654,1751935856343,-2282.19,0.0003068,7]
[370283655,1751935856352,-500.0,0.0003068,7]
[370283656,1751935856362,-500.0,0.0003068,7]
[370283657,1751935856372,-884.96,0.0003068,7]
[370283658,1751935856381,-2959.47,0.0003068,7]
[370283659,1751935856391,-196.99,0.00030681,7]
[370283660,1751935856400,-490.0,0.00030682,7]
[370283661,1751935856409,-502.79013954,0.00030682,7]
[370283662,1751935856419,-490.96696998,0.00030682,7]
[370283663,1751935856429,-509.41722349,0.00030682,7]
[370283664,1751935856438,-490.0,0.00030682,7]
[370283665,1751935856447,-498.40959234,0.00030682,7]
[370283666,1751935856457,-490.0,0.00030682,7]
[370283667,1751935856466,-490.0,0.00030682,7]
[370283668,1751935856475,-300.0,0.00030682,7]
[370283669,1751935856484,-492.11343599,0.00030682,7]
[370283670,1751935856494,-490.0,0.00030682,7]
[370283671,1751935856503,-460.0,0.00030682,7]
[370283672,1751935856514,-490.0,0.00030682,7]
[370283673,1751935856524,-490.0,0.00030682,7]
[370283674,1751935856533,-490.0,0.00030682,7]
[370283675,1751935856544,-493.96618094,0.00030682,7]
[370283676,1751935856554,-490.0,0.00030682,7]
[370283677,1751935856566,-490.0,0.00030682,7]
[370283678,1751935856575,-490.0,0.00030682,7]
[370283679,1751935856585,-490.75551908,0.00030682,7]
[370283680,1751935856941,-490.0,0.00030682,7]
[370283681,1751935856963,-490.0,0.00030682,7]
[370283682,1751935856976,-490.0,0.00030682,7]
[370283683,1751935856985,-461.80770445,0.00030682,7]
[370283684,1751935856994,-490.0,0.00030682,7]
[370283685,1751935857005,-490.51175023,0.00030682,7]
[370283686,1751935857015,-490.0,0.00030682,7]
[370283687,1751935857025,-490.0,0.00030682,7]
[370283688,1751935857033,-490.0,0.00030682,7]
[370283689,1751935857043,-490.0,0.00030682,7]
[370283690,1751935857053,-495.18641219,0.00030682,7]
[370283691,1751935857065,-490.0,0.00030682,7]
[370283692,1751935857076,-490.0,0.00030682,7]
[370283693,1751935857086,-490.0,0.00030682,7]
[370283694,1751935857095,-490.0,0.00030682,7]
[370283695,1751935857104,-490.0,0.00030682,7]
[370283696,1751935857114,-490.0,0.00030682,7]
[370283697,1751935857123,-490.0,0.00030682,7]
[370283698,1751935857133,-490.0,0.00030682,7]
[370283699,1751935857143,-490.0,0.00030682,7]
[370283700,1751935857153,-490.0,0.00030682,7]
[370283701,1751935857162,-490.0,0.00030682,7]
[370283702,1751935857171,-490.0,0.00030682,7]
[370283703,1751935857181,-490.0,0.00030682,7]
[370283704,1751935857192,-493.41176926,0.00030682,7]
[370283705,1751935857201,-496.3775959,0.00030682,7]
[370283706,1751935857211,-371.22445436,0.00030682,7]
[370283707,1751935857220,-371.0365834,0.00030682,7]
[370283708,1751935857230,-490.0,0.00030682,7]
[370283709,1751935857239,-350.0,0.00030682,7]
[370283710,1751935857250,-490.0,0.00030682,7]
[370283711,1751935857260,-490.0,0.00030682,7]
[370283712,1751935857270,-490.0,0.00030682,7]
[370283713,1751935857279,-490.0,0.00030682,7]
[370283714,1751935857288,-490.0,0.00030682,7]
[370283715,1751935857298,-490.0,0.00030682,7]
[370283716,1751935857307,-490.0,0.00030682,7]
[370283717,1751935857319,-490.0,0.00030682,7]
[370283718,1751935857329,-490.0,0.00030682,7]
[370283719,1751935857338,-490.0,0.00030682,7]
[370283720,1751935857347,-490.0,0.00030682,7]
[370283721,1751935857357,-490.0,0.00030682,7]
[370283722,1751935857367,-460.0,0.00030682,7]
[370283723,1751935857378,-490.0,0.00030682,7]
[370283724,1751935857388,-460.0,0.00030682,7]
[370283725,1751935857398,-490.0,0.00030682,7]
[370283726,1751935857407,-490.0,0.00030682,7]
[370283727,1751935857417,-494.32271696,0.00030682,7]
[370283728,1751935857427,-460.0,0.00030682,7]
[370283729,1751935857437,-490.0,0.00030682,7]
[370283730,1751935857449,-460.0,0.00030682,7]
[370283731,1751935857458,-490.0,0.00030682,7]
[370283732,1751935857469,-490.0,0.00030682,7]
[370283733,1751935857478,-460.0,0.00030682,7]
[370283734,1751935857487,-490.0,0.00030682,7]
[370283735,1751935857496,-490.0,0.00030682,7]
[370283736,1751935857505,-494.43902701,0.00030682,7]
[370283737,1751935857516,-460.0,0.00030682,7]
[370283738,1751935857525,-490.0,0.00030682,7]
[370283739,1751935857535,-490.0,0.00030682,7]
[370283740,1751935857545,-460.0,0.00030682,7]
[370283741,1751935857554,-490.0,0.00030682,7]
[370283742,1751935857569,-490.0,0.00030682,7]
[370283743,1751935857581,-490.0,0.00030682,7]
[370283744,1751935857591,-490.0,0.00030682,7]
[370283745,1751935857602,-490.0,0.00030682,7]
[370283746,1751935857611,-490.0,0.00030682,7]
[370283747,1751935857621,-494.44794275,0.00030682,7]
[370283748,1751935857630,-460.0,0.00030682,7]
[370283749,1751935857640,-490.53405279,0.00030682,7]
[370283750,1751935857650,-460.0,0.00030682,7]
[370283751,1751935857659,-490.0,0.00030682,7]
[370283752,1751935857669,-490.0,0.00030682,7]
[370283753,1751935857679,-460.0,0.00030682,7]
[370283754,1751935857690,-490.0,0.00030682,7]
[370283755,1751935857700,-164.63818177,0.00030682,7]
[370283756,1751935857709,-460.0,0.00030682,7]
[370283757,1751935857719,-490.0,0.00030682,7]
[370283758,1751935857729,-490.0,0.00030682,7]
[370283759,1751935857739,-490.0,0.00030682,7]
[370283760,1751935857749,-490.0,0.00030682,7]
[370283761,1751935857761,-499.47,0.00030682,7]
[370283762,1751935857771,-490.0,0.00030682,7]
[370283763,1751935857782,-490.0,0.00030682,7]
[370283764,1751935857792,-490.0,0.00030682,7]
[370283765,1751935857801,-460.0,0.00030682,7]
[370283766,1751935857812,-460.0,0.00030682,7]
[370283767,1751935857822,-460.0,0.00030682,7]
[370283768,1751935857831,-460.0,0.00030682,7]
[370283769,1751935857840,-490.0,0.00030682,7]
[370283770,1751935857850,-490.0,0.00030682,7]
[370283771,1751935857859,-460.0,0.00030682,7]
[370283772,1751935857868,-490.0,0.00030682,7]
[370283773,1751935857877,-199.34519328,0.00030682,7]
[370283774,1751935857888,-490.0,0.00030682,7]
[370283775,1751935857899,-460.0,0.00030682,7]
[370283776,1751935857908,-460.0,0.00030682,7]
[370283777,1751935857918,-500.0,0.00030682,7]
[370283778,1751935857928,-460.0,0.00030682,7]
[370283779,1751935857939,-490.0,0.00030682,7]
[370283780,1751935857949,-460.0,0.00030682,7]
[370283781,1751935857959,-490.0,0.00030682,7]
[370283782,1751935857968,-520.0,0.00030683,7]
[370283783,1751935857977,-460.0,0.00030683,7]
[370283784,1751935857986,-460.0,0.00030683,7]
[370283785,1751935857995,-520.0,0.00030683,7]
[370283786,1751935858004,-520.0,0.00030683,7]
[370283787,1751935858013,-460.0,0.00030683,7]
[370283788,1751935858023,-460.0,0.00030683,7]
[370283789,1751935858032,-500.0,0.00030683,7]
[370283790,1751935858042,-500.0,0.00030683,7]
[370283791,1751935858051,-776.02,0.00030683,7]
[370283792,1751935858063,-494.19,0.00030683,7]
[370283793,1751935858076,-882.28,0.00030683,7]
[370283794,1751935858086,-661.06,0.00030683,7]
[370283795,1751935858095,-473.82,0.00030683,7]
[370283796,1751935858106,-1150.92,0.00030683,7]
[370283797,1751935858116,-195.64095289,0.00030683,7]
[370283798,1751935858152,-493.14621426,0.00030136,7]
[370283799,1751935858161,-490.0,0.00030136,7]
[370283800,1751935858171,-264.35904711,0.00030683,7]
[370283801,1751935858181,-2680.78,0.00030683,7]
[370283802,1751935858190,-460.0,0.00030683,7]
[370283803,1751935858199,-490.0,0.00030683,7]
[370283804,1751935858209,-757.61,0.00030683,7]
[370283805,1751935858218,-460.0,0.00030683,7]
[370283806,1751935858228,-460.0,0.00030683,7]
[370283807,1751935858238,-460.0,0.00030683,7]
[370283808,1751935858249,-1543.49,0.00030683,7]
[370283809,1751935858259,-460.0,0.00030683,7]
[370283810,1751935858269,-1264.22,0.00030683,7]
[370283811,1751935858279,-1000.0,0.00030683,7]
[370283812,1751935858290,-649.71,0.00030683,7]
[370283813,1751935858300,-460.0,0.00030683,7]
[370283814,1751935858310,-460.0,0.00030683,7]
[370283815,1751935858319,-764.11,0.00030683,7]
[370283816,1751935858328,-1310.5,0.00030683,7]
[370283817,1751935858338,-471.08,0.00030683,7]
[370283818,1751935858347,-1518.81,0.00030683,7]
[370283819,1751935858357,-460.0,0.00030683,7]
[370283820,1751935858367,-460.0,0.00030683,7]
[370283821,1751935858376,-460.0,0.00030683,7]
[370283822,1751935858387,-460.0,0.00030683,7]
[370283823,1751935858396,-460.0,0.00030683,7]
[370283824,1751935858405,-865.51,0.00030683,7]
[370283825,1751935858415,-884.96,0.00030683,7]
[370283826,1751935858424,-500.0,0.00030683,7]
[370283827,1751935858434,-164.66,0.00030683,7]
[370283828,1751935858443,-460.0,0.00030683,7]
[370283829,1751935858454,-460.0,0.00030683,7]
[370283830,1751935858463,-504.68,0.00030683,7]
[370283831,1751935858472,-2959.47,0.00030683,7]
[370283832,1751935858482,-460.0,0.00030683,7]
[370283833,1751935858492,-256.37513006,0.00030683,7]
[370283834,1751935858890,-490.0,0.00030136,7]
[370283835,1751935858900,-579.23486994,0.00030683,7]
[370283836,1751935858909,-460.0,0.00030683,7]
[370283837,1751935858918,-1390.42,0.00030683,7]
[370283838,1751935858928,-460.0,0.00030683,7]
[370283839,1751935858937,-263.21,0.00030684,7]
[370283840,1751935858946,-460.0,0.00030684,7]
[370283841,1751935858955,-460.0,0.00030684,7]
[370283842,1751935858964,-176.63285785,0.00030684,7]
[370283843,1751935858973,-460.0,0.00030684,7]
[370283844,1751935858982,-460.0,0.00030684,7]
[370283845,1751935858990,-460.0,0.00030684,7]
[370283846,1751935859000,-460.0,0.00030684,7]
[370283847,1751935859009,-460.0,0.00030684,7]
[370283848,1751935859017,-460.0,0.00030684,7]
[370283849,1751935859027,-484.3,0.00030684,7]
[370283850,1751935859036,-460.0,0.00030684,7]
[370283851,1751935859045,-513.0,0.00030684,7]
[370283852,1751935859054,-460.0,0.00030684,7]
[370283853,1751935859066,-460.0,0.00030684,7]
[370283854,1751935859078,-449.16,0.00030684,7]
[370283855,1751935859086,-460.0,0.00030684,7]
[370283856,1751935859095,-78.78913897,0.00030684,7]
[370283857,1751935859112,-381.21086103,0.00030684,7]
[370283858,1751935859121,-460.0,0.00030684,7]
[370283859,1751935859131,-395.12,0.00030684,7]
[370283860,1751935859141,-403.81,0.00030684,7]
[370283861,1751935859151,-428.99,0.00030684,7]
[370283862,1751935859161,-108.69105624,0.00030684,7]
[370283863,1751935859173,-255.6,0.00030684,7]
[370283864,1751935859645,-95.70894376,0.00030684,7]
[370283865,1751935859655,-460.0,0.00030684,7]
[370283866,1751935859664,-460.0,0.00030684,7]
[370283867,1751935859673,-327.46,0.00030684,7]
[370283868,1751935859682,-460.0,0.00030684,7]
[370283869,1751935859691,-460.0,0.00030684,7]
[370283870,1751935859700,-460.0,0.00030684,7]
[370283871,1751935859709,-460.0,0.00030684,7]
[370283872,1751935859719,-525.91,0.00030684,7]
[370283873,1751935859728,-460.0,0.00030684,7]
[370283874,1751935859737,-460.0,0.00030684,7]
[370283875,1751935859746,-460.0,0.00030684,7]
[370283876,1751935859756,-460.0,0.00030684,7]
[370283877,1751935859765,-568.61875848,0.00030684,7]
[370283878,1751935859774,-460.0,0.00030684,7]
[370283879,1751935859783,-460.0,0.00030684,7]
[370283880,1751935859792,-231.44,0.00030684,7]
[370283881,1751935859801,-207.19,0.00030684,7]
[370283882,1751935859813,-460.0,0.00030684,7]
[370283883,1751935859822,-460.0,0.00030684,7]
[370283884,1751935859831,-460.0,0.00030684,7]
[370283885,1751935859840,-256.0,0.00030684,7]
[370283886,1751935859849,-234.82,0.00030684,7]
[370283887,1751935859858,-460.0,0.00030684,7]
[370283888,1751935859867,-460.0,0.00030684,7]
[370283889,1751935859877,-460.0,0.00030684,7]
[370283890,1751935859887,-460.0,0.00030684,7]
[370283891,1751935859897,-460.0,0.00030684,7]
[370283892,1751935859907,-559.98,0.00030684,7]
[370283893,1751935859917,-460.0,0.00030684,7]
[370283894,1751935859928,-460.0,0.00030684,7]
[370283895,1751935859938,-460.0,0.00030684,7]
[370283896,1751935859948,-596.04421778,0.00030684,7]
[370283897,1751935859958,-460.0,0.00030684,7]
[370283898,1751935859968,-460.0,0.00030684,7]
[370283899,1751935859977,-460.0,0.00030684,7]
[370283900,1751935859988,-460.0,0.00030684,7]
[370283901,1751935859999,-460.0,0.00030684,7]
[370283902,1751935860008,-582.21,0.00030684,7]
[370283903,1751935860018,-460.0,0.00030684,7]
[370283904,1751935860028,-460.0,0.00030684,7]
[370283905,1751935860199,-474.58,0.00030684,7]
[370283906,1751935860209,-460.0,0.00030684,7]
[370283907,1751935860219,-460.0,0.00030684,7]
[370283908,1751935860229,-550.2,0.00030684,7]
[370283909,1751935860239,-460.0,0.00030684,7]
[370283910,1751935860249,-460.0,0.00030684,7]
[370283911,1751935860259,-460.0,0.00030684,7]
[370283912,1751935860269,-460.0,0.00030684,7]
[370283913,1751935860278,-460.0,0.00030684,7]
[370283914,1751935860288,-460.0,0.00030684,7]
[370283915,1751935860297,-460.0,0.00030684,7]
[370283916,1751935860308,-460.0,0.00030684,7]
[370283917,1751935860320,-460.0,0.00030684,7]
[370283918,1751935860329,-171.217192,0.00030684,7]
[370283919,1751935860339,-460.0,0.00030684,7]
[370283920,1751935860349,-460.0,0.00030684,7]
[370283921,1751935860358,-460.0,0.00030684,7]
[370283922,1751935860367,-460.0,0.00030684,7]
[370283923,1751935860376,-460.0,0.00030684,7]
[370283924,1751935860386,-460.0,0.00030684,7]
[370283925,1751935860395,-460.0,0.00030684,7]
[370283926,1751935860405,-545.73,0.00030684,7]
[370283927,1751935860414,-460.0,0.00030684,7]
[370283928,1751935860423,-689.8,0.00030684,7]
[370283929,1751935860432,-460.0,0.00030684,7]
[370283930,1751935860442,-460.0,0.00030684,7]
[370283931,1751935860451,-605.36,0.00030684,7]
[370283932,1751935860460,-460.0,0.00030684,7]
[370283933,1751935860469,-460.0,0.00030684,7]
[370283934,1751935860479,-460.0,0.00030684,7]
[370283935,1751935860489,-460.0,0.00030684,7]
[370283936,1751935860498,-460.0,0.00030684,7]
[370283937,1751935860507,-460.0,0.00030684,7]
[370283938,1751935860516,-460.0,0.00030684,7]
[370283939,1751935860525,-460.0,0.00030684,7]
[370283940,1751935860535,-460.0,0.00030684,7]
[370283941,1751935860545,-460.0,0.00030684,7]
[370283942,1751935860554,-460.0,0.00030684,7]
[370283943,1751935860566,-325.93,0.00030684,7]
[370283944,1751935860575,-558.77680401,0.00030684,7]
[370283945,1751935860585,-460.0,0.00030684,7]
[370283946,1751935860594,-602.49,0.00030684,7]
[370283947,1751935860604,-460.0,0.00030684,7]
[370283948,1751935860614,-460.0,0.00030684,7]
[370283949,1751935860624,-490.0,0.00030684,7]
[370283950,1751935860633,-460.0,0.00030684,7]
[370283951,1751935860642,-460.0,0.00030684,7]
[370283952,1751935860651,-460.0,0.00030684,7]
[370283953,1751935860661,-460.0,0.00030684,7]
[370283954,1751935860671,-460.0,0.00030684,7]
[370283955,1751935860680,-460.0,0.00030684,7]
[370283956,1751935860690,-460.0,0.00030684,7]
[370283957,1751935860700,-460.0,0.00030684,7]
[370283958,1751935860709,-460.0,0.00030684,7]
[370283959,1751935860718,-460.0,0.00030684,7]
[370283960,1751935860727,-460.0,0.00030684,7]
[370283961,1751935860737,-460.0,0.00030684,7]
[370283962,1751935860746,-587.08,0.00030684,7]
[370283963,1751935860755,-460.0,0.00030684,7]
[370283964,1751935860764,-460.0,0.00030684,7]
[370283965,1751935860774,-460.0,0.00030684,7]
[370283966,1751935860783,-460.0,0.00030684,7]
[370283967,1751935860792,-460.0,0.00030684,7]
[370283968,1751935860801,-460.0,0.00030684,7]
[370283969,1751935860812,-606.27,0.00030684,7]
[370283970,1751935860821,-460.0,0.00030684,7]
[370283971,1751935860830,-460.0,0.00030684,7]
[370283972,1751935860840,-460.0,0.00030684,7]
[370283973,1751935860849,-1004.11,0.00030684,7]
[370283974,1751935860859,-460.0,0.00030684,7]
[370283975,1751935860868,-214.99,0.00030684,7]
[370283976,1751935860877,-524.45,0.00030684,7]
[370283977,1751935860887,-460.0,0.00030684,7]
[370283978,1751935860896,-460.0,0.00030684,7]
[370283979,1751935860906,-460.0,0.00030684,7]
[370283980,1751935860914,-460.0,0.00030684,7]
[370283981,1751935860924,-460.0,0.00030684,7]
[370283982,1751935860933,-460.0,0.00030684,7]
[370283983,1751935860942,-460.0,0.00030684,7]
[370283984,1751935860951,-460.0,0.00030684,7]
[370283985,1751935860960,-460.0,0.00030684,7]
[370283986,1751935860974,-460.0,0.00030684,7]
[370283987,1751935860983,-460.0,0.00030684,7]
[370283988,1751935860991,-1593.02,0.00030684,7]
[370283989,1751935861000,-460.0,0.00030684,7]
[370283990,1751935861009,-523.58,0.00030684,7]
[370283991,1751935861019,-460.0,0.00030684,7]
[370283992,1751935861028,-460.0,0.00030684,7]
[370283993,1751935861037,-460.89,0.00030684,7]
[370283994,1751935861047,-527.09,0.00030684,7]
[370283995,1751935861056,-520.0,0.00030684,7]
[370283996,1751935861069,-460.0,0.00030684,7]
[370283997,1751935861078,-460.0,0.00030684,7]
[370283998,1751935861087,-591.69,0.00030684,7]
[370283999,1751935861097,-460.0,0.00030684,7]
[370284000,1751935861107,-460.0,0.00030684,7]
[370284001,1751935861116,-460.0,0.00030684,7]
[370284002,1751935861127,-460.0,0.00030684,7]
[370284003,1751935861136,-460.0,0.00030684,7]
[370284004,1751935861146,-460.0,0.00030684,7]
[370284005,1751935861156,-460.0,0.00030684,7]
[370284006,1751935861166,-460.0,0.00030684,7]
[370284007,1751935861175,-173.2172677,0.00030684,7]
[370284008,1751935861191,-286.7827323,0.00030684,7]
[370284009,1751935861200,-227.92,0.00030684,7]
[370284010,1751935861209,-520.0,0.00030684,7]
[370284011,1751935861218,-460.0,0.00030684,7]
[370284012,1751935861228,-460.0,0.00030684,7]
[370284013,1751935861237,-460.0,0.00030684,7]
[370284014,1751935861246,-500.7,0.00030684,7]
[370284015,1751935861255,-648.91,0.00030684,7]
[370284016,1751935861266,-240.85,0.00030684,7]